[Event "Titled Tuesday Blitz April 18 Late 2023"]
[White "Le Goff, Ronan"]
[Black "Barrientos, Sergio E"]
[WhiteFideId "612073"]
[BlackFideId "4401824"]
[WhiteElo "2275"]
[BlackElo "2423"]
[Result "1-0"]
[Round "07"]
[TimeControl "180+2"]
[Date "2023.04.18"]
[WhiteClock "0:00:19"]
[BlackClock "0:01:03"]

1. d4 {[%clk 0:02:59]}  a6 {[%clk 0:03:00]} 2. g3 {[%clk 0:02:58]}  g6 {[%clk 0:03:00]} 3. Bg2 {[%clk 0:02:58]}  Bg7 {[%clk 0:03:01]} 4. e4 {[%clk 0:02:58]}  d6 {[%clk 0:03:01]} 5. Ne2 {[%clk 0:02:58]}  Nd7 {[%clk 0:03:02]} 6. O-O {[%clk 0:02:58]}  e5 {[%clk 0:03:01]} 7. Nbc3 {[%clk 0:02:57]}  Ne7 {[%clk 0:03:01]} 8. dxe5 {[%clk 0:02:54]}  dxe5 {[%clk 0:03:00]} 9. Nd5 {[%clk 0:02:52]}  c6 {[%clk 0:02:56]} 10. Nxe7 {[%clk 0:02:50]}  Qxe7 {[%clk 0:02:57]} 11. b3 {[%clk 0:02:48]}  O-O {[%clk 0:02:57]} 12. a4 {[%clk 0:02:48]}  Rd8 {[%clk 0:02:57]} 13. Ba3 {[%clk 0:02:48]}  Qe8 {[%clk 0:02:56]} 14. Qc1 {[%clk 0:02:46]}  Nf8 {[%clk 0:02:56]} 15. Qe3 {[%clk 0:02:43]}  Ne6 {[%clk 0:02:55]} 16. c3 {[%clk 0:02:43]}  Bf8 {[%clk 0:02:49]} 17. Bxf8 {[%clk 0:02:39]}  Qxf8 {[%clk 0:02:50]} 18. Rfd1 {[%clk 0:02:39]}  Bd7 {[%clk 0:02:50]} 19. Qb6 {[%clk 0:02:37]}  Rab8 {[%clk 0:02:40]} 20. b4 {[%clk 0:02:35]}  Qe7 {[%clk 0:02:37]} 21. a5 {[%clk 0:02:31]}  Be8 {[%clk 0:02:35]} 22. h4 {[%clk 0:02:29]}  Nc7 {[%clk 0:02:28]} 23. Kh2 {[%clk 0:02:18]}  Nb5 {[%clk 0:02:27]} 24. Bh3 {[%clk 0:02:14]}  Nd6 {[%clk 0:02:26]} 25. f3 {[%clk 0:02:11]}  Nc4 {[%clk 0:02:25]} 26. Qf2 {[%clk 0:02:11]}  Nb2 {[%clk 0:02:22]} 27. Rxd8 {[%clk 0:02:06]}  Rxd8 {[%clk 0:02:23]} 28. Nc1 {[%clk 0:02:04]}  Nd3 {[%clk 0:02:16]} 29. Qe3 {[%clk 0:02:04]}  Nb2 {[%clk 0:02:11]} 30. Ra2 {[%clk 0:01:57]}  Nc4 {[%clk 0:02:10]} 31. Qe2 {[%clk 0:01:55]}  Nd6 {[%clk 0:02:07]} 32. Nd3 {[%clk 0:01:53]}  f6 {[%clk 0:02:07]} 33. Nc5 {[%clk 0:01:51]}  Nb5 {[%clk 0:02:07]} 34. Rc2 {[%clk 0:01:31]}  Bf7 {[%clk 0:02:07]} 35. Qe1 {[%clk 0:01:26]}  Kg7 {[%clk 0:02:05]} 36. Rd2 {[%clk 0:01:25]}  Rd6 {[%clk 0:02:04]} 37. Qc1 {[%clk 0:01:22]}  h5 {[%clk 0:02:01]} 38. Bc8 {[%clk 0:01:19]}  Rxd2+ {[%clk 0:02:00]} 39. Qxd2 {[%clk 0:01:18]}  Nd6 {[%clk 0:02:01]} 40. Bh3 {[%clk 0:01:14]}  Bc4 {[%clk 0:01:58]} 41. g4 {[%clk 0:01:06]}  hxg4 {[%clk 0:01:57]} 42. fxg4 {[%clk 0:01:05]}  Be6 {[%clk 0:01:38]} 43. g5 {[%clk 0:01:02]}  Bxh3 {[%clk 0:01:37]} 44. Kxh3 {[%clk 0:01:02]}  f5 {[%clk 0:01:31]} 45. exf5 {[%clk 0:00:57]}  Nxf5 {[%clk 0:01:31]} 46. Qd7 {[%clk 0:00:52]}  Qxd7 {[%clk 0:01:29]} 47. Nxd7 {[%clk 0:00:53]}  e4 {[%clk 0:01:29]} 48. Nc5 {[%clk 0:00:51]}  e3 {[%clk 0:01:29]} 49. Kg2 {[%clk 0:00:51]}  Nxh4+ {[%clk 0:01:29]} 50. Kf1 {[%clk 0:00:51]}  Nf3 {[%clk 0:01:28]} 51. Nxb7 {[%clk 0:00:49]}  Nxg5 {[%clk 0:01:28]} 52. Nc5 {[%clk 0:00:49]}  Kf6 {[%clk 0:01:24]} 53. Nxa6 {[%clk 0:00:50]}  Ne4 {[%clk 0:01:25]} 54. Nc7 {[%clk 0:00:45]}  Nxc3 {[%clk 0:01:18]} 55. a6 {[%clk 0:00:45]}  Na4 {[%clk 0:01:19]} 56. a7 {[%clk 0:00:40]}  Nb6 {[%clk 0:01:19]} 57. Ke2 {[%clk 0:00:38]}  Ke5 {[%clk 0:01:17]} 58. Kxe3 {[%clk 0:00:37]}  Kd6 {[%clk 0:01:09]} 59. a8=Q {[%clk 0:00:34]}  Nxa8 {[%clk 0:01:09]} 60. Nxa8 {[%clk 0:00:34]}  Kd5 {[%clk 0:01:06]} 61. Nb6+ {[%clk 0:00:33]}  Ke5 {[%clk 0:01:03]} 62. Nc4+ {[%clk 0:00:27]}  Kd5 {[%clk 0:01:04]} 63. Kd3 {[%clk 0:00:27]}  g5 {[%clk 0:01:04]} 64. Ne3+ {[%clk 0:00:27]}  Ke5 {[%clk 0:01:04]} 65. Kc4 {[%clk 0:00:26]}  Ke4 {[%clk 0:01:04]} 66. Ng4 {[%clk 0:00:26]}  Kf5 {[%clk 0:01:05]} 67. Nf2 {[%clk 0:00:26]}  Ke6 {[%clk 0:00:59]} 68. Kc5 {[%clk 0:00:25]}  Kd7 {[%clk 0:01:00]} 69. Kb6 {[%clk 0:00:23]}  Kd6 {[%clk 0:01:00]} 70. Ne4+ {[%clk 0:00:23]}  Kd5 {[%clk 0:01:00]} 71. Nxg5 {[%clk 0:00:23]}  Kc4 {[%clk 0:01:00]} 72. Ka5 {[%clk 0:00:22]}  Kd5 {[%clk 0:00:59]} 73. Nf3 {[%clk 0:00:21]}  c5 {[%clk 0:00:59]} 74. b5 {[%clk 0:00:20]}  c4 {[%clk 0:01:00]} 75. Ne1 {[%clk 0:00:20]}  c3 {[%clk 0:00:58]} 76. Nc2 {[%clk 0:00:20]}  Kc4 {[%clk 0:00:58]} 77. b6 {[%clk 0:00:20]}  Kb3 {[%clk 0:00:58]} 78. Nd4+ {[%clk 0:00:20]}  Kc4 {[%clk 0:00:59]} 79. Nc2 {[%clk 0:00:20]}  Kb3 {[%clk 0:00:59]} 80. b7 {[%clk 0:00:21]}  Kxc2 {[%clk 0:01:00]} 81. b8=Q {[%clk 0:00:21]}  Kc1 {[%clk 0:01:01]} 82. Qf4+ {[%clk 0:00:21]}  Kb1 {[%clk 0:01:01]} 83. Qb4+ {[%clk 0:00:20]}  Kc2 {[%clk 0:01:00]} 84. Kb5 {[%clk 0:00:19]}  Kd3 {[%clk 0:01:01]} 85. Qc4+ {[%clk 0:00:18]}  Kd2 {[%clk 0:01:01]} 86. Qd4+ {[%clk 0:00:19]}  Kc2 {[%clk 0:01:02]} 87. Kb4 {[%clk 0:00:19]}  Kb1 {[%clk 0:01:03]} 88. Qxc3 {[%clk 0:00:19]} 1-0


[Site "https://www.chess.com"]

[Event "Titled Tuesday Blitz April 18 Late 2023"]
[White "Krishnan, Varun"]
[Black "Prydun, Andriy"]
[WhiteFideId "5054508"]
[BlackFideId "14145898"]
[WhiteElo "2597"]
[BlackElo "2164"]
[Result "1-0"]
[Round "07"]
[TimeControl "180+2"]
[Date "2023.04.18"]
[WhiteClock "0:00:16"]
[BlackClock "0:00:08"]

1. d4 {[%clk 0:03:00]}  Nf6 {[%clk 0:02:56]} 2. c4 {[%clk 0:03:00]}  c5 {[%clk 0:02:56]} 3. d5 {[%clk 0:03:00]}  e5 {[%clk 0:02:57]} 4. Nc3 {[%clk 0:02:59]}  d6 {[%clk 0:02:57]} 5. e4 {[%clk 0:03:00]}  Nbd7 {[%clk 0:02:58]} 6. Nf3 {[%clk 0:02:57]}  a6 {[%clk 0:02:56]} 7. Be2 {[%clk 0:02:57]}  Be7 {[%clk 0:02:56]} 8. O-O {[%clk 0:02:57]}  Nf8 {[%clk 0:02:55]} 9. a3 {[%clk 0:02:57]}  Ng6 {[%clk 0:02:55]} 10. Rb1 {[%clk 0:02:57]}  O-O {[%clk 0:02:53]} 11. b4 {[%clk 0:02:57]}  b6 {[%clk 0:02:52]} 12. Qb3 {[%clk 0:02:49]}  Nh5 {[%clk 0:02:51]} 13. Nxe5 {[%clk 0:02:39]}  Nxe5 {[%clk 0:02:51]} 14. Bxh5 {[%clk 0:02:38]}  f5 {[%clk 0:02:52]} 15. f4 {[%clk 0:02:24]}  Nf7 {[%clk 0:02:42]} 16. Bxf7+ {[%clk 0:02:19]}  Rxf7 {[%clk 0:02:43]} 17. e5 {[%clk 0:02:19]}  b5 {[%clk 0:02:27]} 18. bxc5 {[%clk 0:02:17]}  bxc4 {[%clk 0:02:26]} 19. Qxc4 {[%clk 0:02:14]}  Qc7 {[%clk 0:02:26]} 20. Be3 {[%clk 0:01:44]}  Bf8 {[%clk 0:01:52]} 21. Rb6 {[%clk 0:01:31]}  dxc5 {[%clk 0:01:50]} 22. Rc6 {[%clk 0:01:31]}  Qd8 {[%clk 0:01:42]} 23. Bxc5 {[%clk 0:01:20]}  Bb7 {[%clk 0:01:41]} 24. Bxf8 {[%clk 0:01:20]}  Bxc6 {[%clk 0:01:37]} 25. Qxc6 {[%clk 0:00:59]}  Rc8 {[%clk 0:01:37]} 26. Qxa6 {[%clk 0:00:57]}  Rxc3 {[%clk 0:01:36]} 27. Bb4 {[%clk 0:00:55]}  Qxd5 {[%clk 0:01:14]} 28. e6 {[%clk 0:00:38]}  Qd4+ {[%clk 0:00:21]} 29. Kh1 {[%clk 0:00:33]}  Rfc7 {[%clk 0:00:13]} 30. Bxc3 {[%clk 0:00:24]}  Qxc3 {[%clk 0:00:12]} 31. Qd6 {[%clk 0:00:21]}  Qc5 {[%clk 0:00:08]} 32. Qd8+ {[%clk 0:00:16]} 1-0


[Site "https://www.chess.com"]

[Event "Titled Tuesday Blitz April 18 Late 2023"]
[White "Mazurkiewicz, Michal"]
[Black "Srinath, Rao S.V."]
[WhiteFideId "1124943"]
[BlackFideId "5028876"]
[WhiteElo "2054"]
[BlackElo "2196"]
[Result "0-1"]
[Round "07"]
[TimeControl "180+2"]
[Date "2023.04.18"]
[WhiteClock "0:00:08"]
[BlackClock "0:00:21"]

1. e4 {[%clk 0:02:59]}  e5 {[%clk 0:02:56]} 2. Nf3 {[%clk 0:02:59]}  Nc6 {[%clk 0:02:56]} 3. Bb5 {[%clk 0:02:59]}  Nf6 {[%clk 0:02:54]} 4. O-O {[%clk 0:02:59]}  Nxe4 {[%clk 0:02:49]} 5. Re1 {[%clk 0:02:59]}  Nd6 {[%clk 0:02:47]} 6. Nxe5 {[%clk 0:02:59]}  Nxe5 {[%clk 0:02:43]} 7. Rxe5+ {[%clk 0:02:59]}  Be7 {[%clk 0:02:43]} 8. Bf1 {[%clk 0:02:59]}  O-O {[%clk 0:02:42]} 9. d4 {[%clk 0:02:59]}  Bf6 {[%clk 0:02:40]} 10. Re1 {[%clk 0:02:58]}  Nf5 {[%clk 0:02:38]} 11. c3 {[%clk 0:02:58]}  d5 {[%clk 0:02:38]} 12. Nd2 {[%clk 0:02:57]}  a5 {[%clk 0:02:32]} 13. Nf3 {[%clk 0:02:57]}  a4 {[%clk 0:02:31]} 14. a3 {[%clk 0:02:48]}  c6 {[%clk 0:02:29]} 15. Bd3 {[%clk 0:02:48]}  Nd6 {[%clk 0:02:29]} 16. Ne5 {[%clk 0:02:45]}  Bf5 {[%clk 0:02:25]} 17. Bf4 {[%clk 0:02:39]}  Bxd3 {[%clk 0:02:14]} 18. Nxd3 {[%clk 0:02:40]}  Nc4 {[%clk 0:02:07]} 19. Qf3 {[%clk 0:02:12]}  b6 {[%clk 0:01:58]} 20. Rad1 {[%clk 0:02:04]}  Qd7 {[%clk 0:01:56]} 21. Re2 {[%clk 0:01:50]}  Qf5 {[%clk 0:01:52]} 22. g4 {[%clk 0:01:27]}  Qg6 {[%clk 0:01:49]} 23. Rde1 {[%clk 0:01:27]}  h5 {[%clk 0:01:36]} 24. h3 {[%clk 0:01:27]}  Rfc8 {[%clk 0:01:15]} 25. Kh2 {[%clk 0:01:08]}  hxg4 {[%clk 0:01:14]} 26. hxg4 {[%clk 0:01:09]}  Bg5 {[%clk 0:01:13]} 27. Ne5 {[%clk 0:01:04]}  Qh6+ {[%clk 0:01:11]} 28. Kg2 {[%clk 0:01:01]}  Bxf4 {[%clk 0:01:09]} 29. Rh1 {[%clk 0:00:51]}  Nxe5 {[%clk 0:00:54]} 30. Rxe5 {[%clk 0:00:14]}  Qf6 {[%clk 0:00:48]} 31. Rf5 {[%clk 0:00:14]}  Qg6 {[%clk 0:00:45]} 32. Qxf4 {[%clk 0:00:10]}  Re8 {[%clk 0:00:40]} 33. Re5 {[%clk 0:00:05]}  f6 {[%clk 0:00:39]} 34. Re3 {[%clk 0:00:05]}  Rxe3 {[%clk 0:00:37]} 35. fxe3 {[%clk 0:00:06]}  Re8 {[%clk 0:00:37]} 36. Kf3 {[%clk 0:00:03]}  Qc2 {[%clk 0:00:29]} 37. Qf5 {[%clk 0:00:03]}  Qe4+ {[%clk 0:00:19]} 38. Qxe4 {[%clk 0:00:03]}  Rxe4 {[%clk 0:00:20]} 39. Rg1 {[%clk 0:00:04]}  Kf7 {[%clk 0:00:18]} 40. g5 {[%clk 0:00:04]}  f5 {[%clk 0:00:19]} 41. Rh1 {[%clk 0:00:03]}  Kg6 {[%clk 0:00:19]} 42. Rg1 {[%clk 0:00:03]}  Rh4 {[%clk 0:00:18]} 43. Rg2 {[%clk 0:00:03]}  Rh1 {[%clk 0:00:17]} 44. Kf4 {[%clk 0:00:03]}  Re1 {[%clk 0:00:16]} 45. Ke5 {[%clk 0:00:03]}  Rxe3+ {[%clk 0:00:16]} 46. Kd6 {[%clk 0:00:04]}  f4 {[%clk 0:00:16]} 47. Kxc6 {[%clk 0:00:04]}  f3 {[%clk 0:00:17]} 48. Rf2 {[%clk 0:00:05]}  Kxg5 {[%clk 0:00:17]} 49. Kxd5 {[%clk 0:00:05]}  Kf4 {[%clk 0:00:18]} 50. Kc6 {[%clk 0:00:05]}  Re2 {[%clk 0:00:18]} 51. Rxf3+ {[%clk 0:00:06]}  Kxf3 {[%clk 0:00:18]} 52. Kxb6 {[%clk 0:00:06]}  g5 {[%clk 0:00:18]} 53. d5 {[%clk 0:00:06]}  g4 {[%clk 0:00:19]} 54. d6 {[%clk 0:00:06]}  g3 {[%clk 0:00:20]} 55. d7 {[%clk 0:00:07]}  Rd2 {[%clk 0:00:20]} 56. Kc7 {[%clk 0:00:07]}  g2 {[%clk 0:00:21]} 57. d8=Q {[%clk 0:00:07]}  Rxd8 {[%clk 0:00:21]} 58. Kxd8 {[%clk 0:00:08]}  g1=Q {[%clk 0:00:21]} 0-1


[Site "https://www.chess.com"]

[Event "Titled Tuesday Blitz April 18 Late 2023"]
[White "MKlose11"]
[Black "Aranda Marin, Cristian"]
[BlackFideId "2205513"]
[WhiteElo "2575"]
[BlackElo "2233"]
[Result "1-0"]
[Round "07"]
[TimeControl "180+2"]
[Date "2023.04.18"]
[WhiteClock "0:00:30"]
[BlackClock "0:00:01"]

1. e4 {[%clk 0:02:47]}  d5 {[%clk 0:02:58]} 2. exd5 {[%clk 0:02:48]}  Qxd5 {[%clk 0:02:57]} 3. Nc3 {[%clk 0:02:48]}  Qd8 {[%clk 0:02:56]} 4. d4 {[%clk 0:02:35]}  Nf6 {[%clk 0:02:57]} 5. Nf3 {[%clk 0:02:34]}  g6 {[%clk 0:02:57]} 6. Be3 {[%clk 0:02:32]}  Bg7 {[%clk 0:02:57]} 7. Qd2 {[%clk 0:02:32]}  a6 {[%clk 0:02:50]} 8. Bh6 {[%clk 0:02:32]}  O-O {[%clk 0:02:46]} 9. h4 {[%clk 0:02:32]}  b5 {[%clk 0:02:29]} 10. h5 {[%clk 0:02:19]}  b4 {[%clk 0:02:26]} 11. Na4 {[%clk 0:02:02]}  Qd5 {[%clk 0:02:02]} 12. hxg6 {[%clk 0:01:57]}  fxg6 {[%clk 0:01:57]} 13. b3 {[%clk 0:01:42]}  Be6 {[%clk 0:01:45]} 14. O-O-O {[%clk 0:01:38]}  Nbd7 {[%clk 0:00:45]} 15. Ng5 {[%clk 0:01:22]}  Bxh6 {[%clk 0:00:43]} 16. Rxh6 {[%clk 0:01:20]}  Ne4 {[%clk 0:00:37]} 17. Nxe4 {[%clk 0:01:18]}  Qxe4 {[%clk 0:00:37]} 18. Re1 {[%clk 0:01:19]}  Qf4 {[%clk 0:00:10]} 19. Rxe6 {[%clk 0:01:14]}  Qxd2+ {[%clk 0:00:09]} 20. Kxd2 {[%clk 0:01:14]}  Rxf2+ {[%clk 0:00:10]} 21. Be2 {[%clk 0:01:14]}  Nf6 {[%clk 0:00:09]} 22. Rxe7 {[%clk 0:01:07]}  Rd8 {[%clk 0:00:06]} 23. Kd3 {[%clk 0:00:53]}  Rf4 {[%clk 0:00:03]} 24. Bf3 {[%clk 0:00:45]}  Rdxd4+ {[%clk 0:00:03]} 25. Ke2 {[%clk 0:00:41]}  g5 {[%clk 0:00:01]} 26. Rxc7 {[%clk 0:00:31]}  g4 {[%clk 0:00:01]} 27. Bb7 {[%clk 0:00:30]} 1-0


[Site "https://www.chess.com"]

[Event "Titled Tuesday Blitz April 18 Late 2023"]
[White "Blomqvist, Erik"]
[Black "Papayan, Oleg"]
[WhiteFideId "1709437"]
[BlackFideId "4193911"]
[WhiteElo "2436"]
[BlackElo "2153"]
[Result "0-1"]
[Round "07"]
[TimeControl "180+2"]
[Date "2023.04.18"]
[WhiteClock "0:01:20"]
[BlackClock "0:00:43"]

1. Nf3 {[%clk 0:02:53]}  Nf6 {[%clk 0:02:59]} 2. g3 {[%clk 0:02:51]}  c5 {[%clk 0:02:59]} 3. c4 {[%clk 0:02:48]}  Nc6 {[%clk 0:02:57]} 4. Bg2 {[%clk 0:02:46]}  d5 {[%clk 0:02:57]} 5. cxd5 {[%clk 0:02:46]}  Nxd5 {[%clk 0:02:58]} 6. Nc3 {[%clk 0:02:46]}  Nc7 {[%clk 0:02:49]} 7. O-O {[%clk 0:02:45]}  e5 {[%clk 0:02:49]} 8. a3 {[%clk 0:02:44]}  a5 {[%clk 0:02:46]} 9. d3 {[%clk 0:02:37]}  Be7 {[%clk 0:02:44]} 10. Nd2 {[%clk 0:02:36]}  O-O {[%clk 0:02:40]} 11. Nc4 {[%clk 0:02:36]}  f6 {[%clk 0:02:17]} 12. f4 {[%clk 0:02:20]}  exf4 {[%clk 0:02:03]} 13. Bxf4 {[%clk 0:01:59]}  Ne6 {[%clk 0:02:03]} 14. Nb6 {[%clk 0:01:54]}  Qxb6 {[%clk 0:02:02]} 15. Nd5 {[%clk 0:01:42]}  Qd8 {[%clk 0:02:02]} 16. Be3 {[%clk 0:01:43]}  Ned4 {[%clk 0:01:37]} 17. Rc1 {[%clk 0:01:37]}  Be6 {[%clk 0:01:33]} 18. Nf4 {[%clk 0:01:34]}  Bb3 {[%clk 0:01:29]} 19. Qd2 {[%clk 0:01:34]}  a4 {[%clk 0:01:12]} 20. Bf2 {[%clk 0:01:35]}  Bf7 {[%clk 0:01:06]} 21. e4 {[%clk 0:01:32]}  Nb3 {[%clk 0:01:06]} 22. Qc3 {[%clk 0:01:32]}  Nxc1 {[%clk 0:01:05]} 23. Rxc1 {[%clk 0:01:33]}  Nd4 {[%clk 0:00:59]} 24. Qe1 {[%clk 0:01:28]}  Qb6 {[%clk 0:00:54]} 25. e5 {[%clk 0:01:27]}  fxe5 {[%clk 0:00:49]} 26. Qxe5 {[%clk 0:01:28]}  Bf6 {[%clk 0:00:48]} 27. Qe4 {[%clk 0:01:25]}  Qxb2 {[%clk 0:00:46]} 28. Rf1 {[%clk 0:01:20]}  Rfe8 {[%clk 0:00:43]} 0-1


[Site "https://www.chess.com"]

[Event "Titled Tuesday Blitz April 18 Late 2023"]
[White "Kielinkei"]
[Black "Zarnicki, Pablo"]
[BlackFideId "100137"]
[WhiteElo "2429"]
[BlackElo "2468"]
[Result "0-1"]
[Round "07"]
[TimeControl "180+2"]
[Date "2023.04.18"]
[WhiteClock "0:00:30"]
[BlackClock "0:01:42"]

1. e4 {[%clk 0:03:00]}  e5 {[%clk 0:02:56]} 2. Nc3 {[%clk 0:03:00]}  Nf6 {[%clk 0:02:56]} 3. f4 {[%clk 0:03:00]}  d5 {[%clk 0:02:56]} 4. fxe5 {[%clk 0:03:00]}  Nxe4 {[%clk 0:02:57]} 5. Qf3 {[%clk 0:03:01]}  Nxc3 {[%clk 0:02:55]} 6. bxc3 {[%clk 0:02:59]}  Be7 {[%clk 0:02:54]} 7. d4 {[%clk 0:02:57]}  O-O {[%clk 0:02:55]} 8. Bd3 {[%clk 0:02:57]}  c5 {[%clk 0:02:53]} 9. Ne2 {[%clk 0:02:46]}  c4 {[%clk 0:02:52]} 10. Bf5 {[%clk 0:02:46]}  Bxf5 {[%clk 0:02:53]} 11. Qxf5 {[%clk 0:02:47]}  Qd7 {[%clk 0:02:53]} 12. Qxd7 {[%clk 0:02:31]}  Nxd7 {[%clk 0:02:51]} 13. Nf4 {[%clk 0:02:30]}  Nb6 {[%clk 0:02:51]} 14. a4 {[%clk 0:02:30]}  Bg5 {[%clk 0:02:51]} 15. Nxd5 {[%clk 0:02:24]}  Nxd5 {[%clk 0:02:45]} 16. Bxg5 {[%clk 0:02:24]}  Nxc3 {[%clk 0:02:44]} 17. Bd2 {[%clk 0:02:22]}  Nd5 {[%clk 0:02:24]} 18. c3 {[%clk 0:02:22]}  f5 {[%clk 0:02:19]} 19. Rb1 {[%clk 0:02:20]}  a6 {[%clk 0:02:18]} 20. Rxb7 {[%clk 0:02:18]}  Rab8 {[%clk 0:02:19]} 21. Rxb8 {[%clk 0:02:15]}  Rxb8 {[%clk 0:02:20]} 22. Ke2 {[%clk 0:02:02]}  Rb2 {[%clk 0:02:19]} 23. Rc1 {[%clk 0:01:37]}  Nf4+ {[%clk 0:02:10]} 24. Kf3 {[%clk 0:01:22]}  Nd5 {[%clk 0:02:07]} 25. Be3 {[%clk 0:01:08]}  Kf7 {[%clk 0:01:58]} 26. g4 {[%clk 0:00:59]}  fxg4+ {[%clk 0:01:57]} 27. Ke4 {[%clk 0:00:59]}  Ke6 {[%clk 0:01:56]} 28. Re1 {[%clk 0:00:35]}  Nxc3+ {[%clk 0:01:54]} 29. Kf4 {[%clk 0:00:35]}  Nd5+ {[%clk 0:01:53]} 30. Kxg4 {[%clk 0:00:34]}  c3 {[%clk 0:01:52]} 31. Kf3 {[%clk 0:00:30]}  c2 {[%clk 0:01:51]} 32. Ke4 {[%clk 0:00:30]}  Nxe3 {[%clk 0:01:42]} 0-1


[Site "https://www.chess.com"]

[Event "Titled Tuesday Blitz April 18 Late 2023"]
[White "TheKnightOfBosnia"]
[Black "Pesotskiy, Mikhail"]
[BlackFideId "34164453"]
[WhiteElo "2503"]
[BlackElo "2131"]
[Result "0-1"]
[Round "07"]
[TimeControl "180+2"]
[Date "2023.04.18"]
[WhiteClock "0:00:05"]
[BlackClock "0:00:31"]

1. e4 {[%clk 0:03:00]}  e6 {[%clk 0:03:00]} 2. d4 {[%clk 0:03:00]}  d5 {[%clk 0:03:00]} 3. Nd2 {[%clk 0:03:01]}  Be7 {[%clk 0:02:58]} 4. Ngf3 {[%clk 0:03:00]}  Nf6 {[%clk 0:02:58]} 5. Bd3 {[%clk 0:02:58]}  Nfd7 {[%clk 0:02:58]} 6. exd5 {[%clk 0:02:56]}  exd5 {[%clk 0:02:59]} 7. O-O {[%clk 0:02:57]}  O-O {[%clk 0:02:59]} 8. Re1 {[%clk 0:02:56]}  c5 {[%clk 0:02:59]} 9. c3 {[%clk 0:02:55]}  Nc6 {[%clk 0:02:58]} 10. Nf1 {[%clk 0:02:53]}  Bf6 {[%clk 0:02:53]} 11. Ng3 {[%clk 0:02:50]}  g6 {[%clk 0:02:52]} 12. Bh6 {[%clk 0:02:48]}  Re8 {[%clk 0:02:52]} 13. Rxe8+ {[%clk 0:02:36]}  Qxe8 {[%clk 0:02:53]} 14. dxc5 {[%clk 0:02:35]}  Nxc5 {[%clk 0:02:53]} 15. Bb5 {[%clk 0:02:33]}  Be6 {[%clk 0:02:39]} 16. Bg5 {[%clk 0:02:31]}  Bg7 {[%clk 0:02:38]} 17. Nd4 {[%clk 0:02:28]}  a6 {[%clk 0:02:35]} 18. Bxc6 {[%clk 0:02:18]}  bxc6 {[%clk 0:02:36]} 19. Be3 {[%clk 0:02:13]}  Ne4 {[%clk 0:02:28]} 20. Nxe4 {[%clk 0:02:12]}  dxe4 {[%clk 0:02:29]} 21. Qa4 {[%clk 0:02:08]}  Bd5 {[%clk 0:02:14]} 22. Rd1 {[%clk 0:01:52]}  c5 {[%clk 0:02:10]} 23. Qxe8+ {[%clk 0:01:53]}  Rxe8 {[%clk 0:02:09]} 24. Nb3 {[%clk 0:01:52]}  Bxb3 {[%clk 0:01:51]} 25. axb3 {[%clk 0:01:53]}  Bf8 {[%clk 0:01:49]} 26. Bf4 {[%clk 0:01:48]}  Be7 {[%clk 0:01:36]} 27. Rd7 {[%clk 0:01:45]}  Rd8 {[%clk 0:01:36]} 28. Rxd8+ {[%clk 0:01:42]}  Bxd8 {[%clk 0:01:37]} 29. Kf1 {[%clk 0:01:31]}  f5 {[%clk 0:01:30]} 30. Ke2 {[%clk 0:01:27]}  Kf7 {[%clk 0:01:29]} 31. Bd6 {[%clk 0:01:21]}  Bb6 {[%clk 0:01:23]} 32. b4 {[%clk 0:01:15]}  c4 {[%clk 0:01:19]} 33. Bf4 {[%clk 0:01:11]}  Ke6 {[%clk 0:01:18]} 34. Be3 {[%clk 0:01:11]}  Bc7 {[%clk 0:01:18]} 35. g3 {[%clk 0:01:05]}  Kd5 {[%clk 0:01:04]} 36. f3 {[%clk 0:00:48]}  Bd8 {[%clk 0:00:55]} 37. Bd4 {[%clk 0:00:43]}  h5 {[%clk 0:00:47]} 38. h3 {[%clk 0:00:40]}  Bg5 {[%clk 0:00:35]} 39. Be3 {[%clk 0:00:20]}  Bxe3 {[%clk 0:00:30]} 40. Kxe3 {[%clk 0:00:21]}  exf3 {[%clk 0:00:31]} 41. Kxf3 {[%clk 0:00:21]}  g5 {[%clk 0:00:32]} 42. Ke3 {[%clk 0:00:18]}  Ke5 {[%clk 0:00:31]} 43. Kf3 {[%clk 0:00:16]}  f4 {[%clk 0:00:28]} 44. gxf4+ {[%clk 0:00:06]}  gxf4 {[%clk 0:00:29]} 45. Kf2 {[%clk 0:00:06]}  Ke4 {[%clk 0:00:29]} 46. Ke2 {[%clk 0:00:06]}  f3+ {[%clk 0:00:29]} 47. Kf2 {[%clk 0:00:06]}  h4 {[%clk 0:00:27]} 48. Kf1 {[%clk 0:00:05]}  Ke3 {[%clk 0:00:27]} 49. Ke1 {[%clk 0:00:06]}  f2+ {[%clk 0:00:27]} 50. Kf1 {[%clk 0:00:06]}  Kf3 {[%clk 0:00:28]} 51. b5 {[%clk 0:00:06]}  axb5 {[%clk 0:00:29]} 52. b4 {[%clk 0:00:05]}  cxb3 {[%clk 0:00:30]} 53. c4 {[%clk 0:00:05]}  b2 {[%clk 0:00:30]} 54. cxb5 {[%clk 0:00:05]}  b1=Q# {[%clk 0:00:31]} 0-1


[Site "https://www.chess.com"]

[Event "Titled Tuesday Blitz April 18 Late 2023"]
[White "Sonnenschein, Philipp"]
[Black "Ward, Ieuan C"]
[WhiteFideId "16250877"]
[BlackFideId "406627"]
[WhiteElo "2224"]
[BlackElo "2332"]
[Result "1-0"]
[Round "07"]
[TimeControl "180+2"]
[Date "2023.04.18"]
[WhiteClock "0:00:13"]
[BlackClock "0:00:06"]

1. e4 {[%clk 0:03:00]}  e5 {[%clk 0:02:58]} 2. Nf3 {[%clk 0:03:01]}  Nc6 {[%clk 0:02:59]} 3. Bb5 {[%clk 0:03:01]}  a6 {[%clk 0:02:59]} 4. Ba4 {[%clk 0:03:01]}  Nf6 {[%clk 0:02:58]} 5. O-O {[%clk 0:03:02]}  Be7 {[%clk 0:02:59]} 6. Re1 {[%clk 0:03:01]}  b5 {[%clk 0:02:59]} 7. Bb3 {[%clk 0:03:01]}  O-O {[%clk 0:02:57]} 8. a4 {[%clk 0:03:01]}  b4 {[%clk 0:02:55]} 9. a5 {[%clk 0:03:00]}  d6 {[%clk 0:02:52]} 10. d3 {[%clk 0:03:00]}  h6 {[%clk 0:02:40]} 11. Nbd2 {[%clk 0:03:00]}  Bg4 {[%clk 0:02:31]} 12. h3 {[%clk 0:02:56]}  Be6 {[%clk 0:02:29]} 13. Bxe6 {[%clk 0:02:54]}  fxe6 {[%clk 0:02:30]} 14. Nb3 {[%clk 0:02:51]}  Nd7 {[%clk 0:02:13]} 15. d4 {[%clk 0:02:47]}  exd4 {[%clk 0:02:12]} 16. Nbxd4 {[%clk 0:02:46]}  Nxd4 {[%clk 0:02:06]} 17. Nxd4 {[%clk 0:02:44]}  Nc5 {[%clk 0:01:59]} 18. Qg4 {[%clk 0:02:24]}  Rf6 {[%clk 0:01:28]} 19. e5 {[%clk 0:02:05]}  dxe5 {[%clk 0:01:25]} 20. Nc6 {[%clk 0:02:05]}  Qf8 {[%clk 0:01:17]} 21. Nxe7+ {[%clk 0:02:01]}  Qxe7 {[%clk 0:01:16]} 22. Rxe5 {[%clk 0:02:01]}  Raf8 {[%clk 0:01:12]} 23. Be3 {[%clk 0:01:51]}  Nd7 {[%clk 0:01:12]} 24. Re4 {[%clk 0:01:50]}  c5 {[%clk 0:01:05]} 25. Re1 {[%clk 0:01:36]}  Qf7 {[%clk 0:00:57]} 26. Qe2 {[%clk 0:01:24]}  Rg6 {[%clk 0:00:46]} 27. Rf4 {[%clk 0:01:19]}  Qe7 {[%clk 0:00:37]} 28. Rxf8+ {[%clk 0:01:19]}  Qxf8 {[%clk 0:00:36]} 29. Kf1 {[%clk 0:01:01]}  Qa8 {[%clk 0:00:30]} 30. f3 {[%clk 0:00:55]}  Rf6 {[%clk 0:00:20]} 31. Bf2 {[%clk 0:00:53]}  Kf7 {[%clk 0:00:17]} 32. Qc4 {[%clk 0:00:48]}  Qc6 {[%clk 0:00:15]} 33. Bh4 {[%clk 0:00:36]}  g5 {[%clk 0:00:15]} 34. Bf2 {[%clk 0:00:35]}  Rf4 {[%clk 0:00:15]} 35. Qd3 {[%clk 0:00:34]}  Nf6 {[%clk 0:00:11]} 36. Qd8 {[%clk 0:00:26]}  Qb5+ {[%clk 0:00:09]} 37. Kg1 {[%clk 0:00:25]}  Qc6 {[%clk 0:00:09]} 38. Rd1 {[%clk 0:00:23]}  Nd5 {[%clk 0:00:08]} 39. Qh8 {[%clk 0:00:20]}  Kg6 {[%clk 0:00:07]} 40. Bg3 {[%clk 0:00:17]}  Rf7 {[%clk 0:00:06]} 41. Be5 {[%clk 0:00:16]}  Nf6 {[%clk 0:00:06]} 42. Rd8 {[%clk 0:00:13]} 1-0


[Site "https://www.chess.com"]